[Event "1st Sakatam Open 2024"]
[Site "Guwahati"]
[Date "2024.03.24"]
[Round "3.4"]
[White "Mishra, Neeraj-Kumar"]
[Black "Ahanjit Banerjee"]
[Result "1-0"]
[ECO "D02"]
[WhiteElo "2150"]
[BlackElo "1683"]
[Annotator "RC"]
[PlyCount "49"]
[EventDate "2024.03.24"]
[EventType "swiss"]
[EventCountry "IND"]
[SourceTitle "playchess.com"]
[Source "ChessBase"]
[SourceQuality "1"]
[TimeControl "5400+30"]

1. d4 {[%emt 0:00:08]} Nf6 {[%emt 0:00:31]} 2. g3 {[%emt 0:00:20]} c5 {[%emt 0:00:41]} 3. Nf3 {[%emt 0:01:46]} cxd4 {[%emt 0:00:31]} 4. Nxd4 {[%emt 0:00:13]} e5 {[%emt 0:01:17]} 5. Nb3 {[%emt 0:00:07]} d5 {[%emt 0:00:08]} 6. Bg2 {[%emt 0:00:03]} h6 {[%emt 0:00:12]} 7. O-O {[%emt 0:00:35]} Nc6 {[%emt 0:01:00]} 8. c3 {[%emt 0:01:53]} Be6 {[%emt 0:08:42]} 9. Be3 {[%emt 0:01:02]} Qd7 {[%emt 0:20:50]} 10. Re1 {[%emt 0:03:53]} Be7 {[%emt 0:04:57]} 11. Nc5 {[%emt 0:00:56]} Bxc5 {[%emt 0:03:19]} 12. Bxc5 {[%emt 0:00:06]} O-O-O {[%emt 0:01:10]} 13. Na3 {[%emt 0:00:33]} Kb8 {[%emt 0:04:01]} 14. Nb5 {[%emt 0:06:43]} b6 {[%emt 0:10:11]} 15. Bd6+ {[%emt 0:00:42]} Kb7 {[%emt 0:00:26]} 16. c4 {[%emt 0:01:52]} a6 {[%emt 0:11:39]} 17. Bc7 {[%emt 0:06:28]} Ra8 {[%emt 0:09:49]} 18. Nc3 {[%emt 0:00:40]} d4 {[%emt 0:00:56]} 19. Bxe5 {[%emt 0:01:52]} dxc3 {[%emt 0:00:10]} 20. Qa4 {[%emt 0:00:14]} Rac8 {[%emt 0:06:48]} 21. Rad1 {[%emt 0:02:03]} Qe8 {[%emt 0:00:29]} 22. Rd6 {[%emt 0:02:14]} Bd7 {[%emt 0:00:23]} 23. Bxf6 {[%emt 0:00:26]} gxf6 {[%emt 0:00:04]} 24. Red1 {[%emt 0:00:13]} Rc7 {[%emt 0:01:22]} 25. Rxd7 {[%emt 0:00:15]} 1-0

[Event "1st Sakatam Open 2024"]
[Site "Guwahati"]
[Date "2024.03.24"]
[Round "3.5"]
[White "Ananga Harsha Borthakur"]
[Black "Balkishan, A.."]
[Result "0-1"]
[ECO "B45"]
[WhiteElo "1683"]
[BlackElo "2108"]
[Annotator "RC"]
[PlyCount "86"]
[EventDate "2024.03.24"]
[EventType "swiss"]
[EventCountry "IND"]
[SourceTitle "playchess.com"]
[Source "ChessBase"]
[SourceQuality "1"]
[TimeControl "5400+30"]

1. e4 {[%emt 0:00:02]} c5 {[%emt 0:09:31]} 2. Nf3 {[%emt 0:00:04]} e6 {[%emt 0:00:05]} 3. d4 {[%emt 0:00:03]} cxd4 {[%emt 0:00:04]} 4. Nxd4 {[%emt 0:00:04]} Nc6 {[%emt 0:00:02]} 5. Nc3 {[%emt 0:00:08]} Nf6 {[%emt 0:00:26]} 6. Ndb5 {[%emt 0:00:43]} Bc5 {[%emt 0:01:14]} 7. Nd6+ {[%emt 0:06:58]} Ke7 {[%emt 0:00:02]} 8. Bf4 {[%emt 0:08:39]} e5 {[%emt 0:00:13]} 9. Nf5+ {[%emt 0:00:32]} Kf8 {[%emt 0:00:05]} 10. Bg5 {[%emt 0:04:53]} d6 {[%emt 0:01:24]} 11. Bxf6 {[%emt 0:08:28]} Qxf6 {[%emt 0:00:03]} 12. Nd5 {[%emt 0:06:52]} Qd8 {[%emt 0:02:16]} 13. Nfe3 {[%emt 0:05:52]} g6 {[%emt 0:01:24]} 14. c3 {[%emt 0:04:07]} a5 {[%emt 0:00:32]} 15. Bc4 {[%emt 0:01:54]} Kg7 {[%emt 0:00:25]} 16. h4 {[%emt 0:01:34]} h5 {[%emt 0:02:57]} 17. Qe2 {[%emt 0:02:02]} Be6 {[%emt 0:00:16]} 18. O-O-O {[%emt 0:00:40]} Rc8 {[%emt 0:00:34]} 19. a4 {[%emt 0:02:20]} Ne7 {[%emt 0:03:02]} 20. Bb5 {[%emt 0:02:16]} Bd4 {[%emt 0:12:08]} 21. Nxe7 {[%emt 0:07:02]} Qxe7 {[%emt 0:01:46]} 22. Kb1 {[%emt 0:04:19]} Bxe3 {[%emt 0:00:31]} 23. Qxe3 {[%emt 0:00:59]} Rc5 {[%emt 0:01:50]} 24. g3 {[%emt 0:09:52]} Rhc8 {[%emt 0:02:49]} 25. Rhe1 {[%emt 0:02:16]} Bb3 {[%emt 0:03:24]} 26. Rd2 {[%emt 0:01:01]} Qe6 {[%emt 0:00:02]} 27. Qe2 {[%emt 0:05:07]} Ba2+ {[%emt 0:02:08]} 28. Ka1 {[%emt 0:00:38]} Bc4 {[%emt 0:00:20]} 29. Bxc4 {[%emt 0:00:58]} Rxc4 {[%emt 0:00:11]} 30. Qd1 {[%emt 0:00:31]} Qe8 {[%emt 0:00:46]} 31. Kb1 {[%emt 0:01:31]} Rxa4 {[%emt 0:01:01]} 32. Rxd6 {[%emt 0:01:23]} Rac4 {[%emt 0:00:06]} 33. Rd7 {[%emt 0:03:17]} b5 {[%emt 0:01:43]} 34. Re3 {[%emt 0:00:41]} b4 {[%emt 0:00:14]} 35. Rf3 {[%emt 0:01:16]} bxc3 {[%emt 0:02:09]} 36. Rfxf7+ {[%emt 0:02:32]} Qxf7 {[%emt 0:00:07]} 37. Rxf7+ {[%emt 0:00:06]} Kxf7 {[%emt 0:00:06]} 38. Qd7+ {[%emt 0:02:41]} Kg8 {[%emt 0:02:08]} 39. bxc3 {[%emt 0:01:12]} R8c7 {[%emt 0:02:26]} 40. Qd5+ {[%emt 0:00:45]} Kh7 {[%emt 0:00:02]} 41. Qxa5 {[%emt 0:00:19]} Rxc3 {[%emt 0:01:11]} 42. Qxe5 {[%emt 0:01:01]} Rc1+ {[%emt 0:00:02]} 43. Kb2 {[%emt 0:00:10]} R1c5 {[%emt 0:00:12]} 0-1

[Event "1st Sakatam Open 2024"]
[Site "Guwahati"]
[Date "2024.03.24"]
[Round "3.6"]
[White "Kumar, Gaurav"]
[Black "Krishnaav Hazarika"]
[Result "1-0"]
[ECO "A24"]
[WhiteElo "2049"]
[BlackElo "1676"]
[Annotator "RC"]
[PlyCount "47"]
[EventDate "2024.03.24"]
[EventType "swiss"]
[EventCountry "IND"]
[SourceTitle "playchess.com"]
[Source "ChessBase"]
[SourceQuality "1"]
[TimeControl "5400+30"]

1. Nf3 {[%emt 0:05:08]} Nf6 {[%emt 0:00:10]} 2. g3 {[%emt 0:00:22]} g6 {[%emt 0:00:09]} 3. Bg2 {[%emt 0:00:31]} Bg7 {[%emt 0:00:11]} 4. c4 {[%emt 0:00:31]} O-O {[%emt 0:00:28]} 5. Nc3 {[%emt 0:00:47]} d6 {[%emt 0:00:27]} 6. d3 {[%emt 0:01:33]} c6 {[%emt 0:02:52]} 7. e4 {[%emt 0:14:25]} e5 {[%emt 0:03:22]} 8. O-O {[%emt 0:00:35]} Na6 {[%emt 0:01:55]} 9. Nh4 {[%emt 0:00:55]} Be6 {[%emt 0:11:08]} 10. f4 {[%emt 0:01:53]} exf4 {[%emt 0:01:08]} 11. Bxf4 {[%emt 0:00:38]} d5 {[%emt 0:04:33]} 12. exd5 {[%emt 0:18:57]} cxd5 {[%emt 0:00:38]} 13. d4 {[%emt 0:00:33]} Rc8 {[%emt 0:04:20]} 14. c5 {[%emt 0:12:54]} Qd7 {[%emt 0:13:05]} 15. Be5 {[%emt 0:03:02]} Nh5 {[%emt 0:06:14]} 16. Bd6 {[%emt 0:15:30]} Rfe8 {[%emt 0:04:43]} 17. Nxd5 {[%emt 0:00:36]} Bxd5 {[%emt 0:04:08]} 18. Bxd5 {[%emt 0:02:29]} Nf6 {[%emt 0:00:14]} 19. Bc4 {[%emt 0:03:45]} Nc7 {[%emt 0:03:21]} 20. Qb3 {[%emt 0:01:50]} Re4 {[%emt 0:13:13]} 21. Nf3 {[%emt 0:03:27]} Ne6 {[%emt 0:04:51]} 22. Ne5 {[%emt 0:00:50]} Qe8 {[%emt 0:01:47]} 23. Qxb7 {[%emt 0:00:26]} Rxd4 {[%emt 0:00:19]} 24. Bb5 {[%emt 0:01:56]} 1-0

[Event "1st Sakatam Open 2024"]
[Site "Guwahati"]
[Date "2024.03.24"]
[Round "3.7"]
[White "Singh, Y. Dhanabir"]
[Black "Koshin Das"]
[Result "1-0"]
[ECO "B21"]
[WhiteElo "1996"]
[BlackElo "1672"]
[Annotator "RC"]
[PlyCount "111"]
[EventDate "2024.03.24"]
[EventType "swiss"]
[EventCountry "IND"]
[SourceTitle "playchess.com"]
[Source "ChessBase"]
[SourceQuality "1"]
[TimeControl "5400+30"]

1. e4 {[%emt 0:00:04]} c5 {[%emt 0:03:05]} 2. f4 {[%emt 0:00:26]} Nc6 {[%emt 0:00:28]} 3. Nf3 {[%emt 0:00:05]} d6 {[%emt 0:00:39]} 4. Bb5 {[%emt 0:00:13]} Bd7 {[%emt 0:00:49]} 5. O-O {[%emt 0:00:53]} Nf6 {[%emt 0:01:26]} 6. d3 {[%emt 0:01:41]} e6 {[%emt 0:03:20]} 7. Bxc6 {[%emt 0:03:07]} Bxc6 {[%emt 0:01:12]} 8. c4 {[%emt 0:01:45]} Be7 {[%emt 0:03:13]} 9. Nc3 {[%emt 0:01:08]} O-O {[%emt 0:02:03]} 10. b3 {[%emt 0:01:15]} d5 {[%emt 0:09:28]} 11. cxd5 {[%emt 0:12:43]} exd5 {[%emt 0:04:00]} 12. e5 {[%emt 0:01:32]} Ng4 {[%emt 0:05:01]} 13. f5 {[%emt 0:06:36]} Qc7 {[%emt 0:12:13]} 14. Qe2 {[%emt 0:42:59]} d4 {[%emt 0:09:25]} 15. Nxd4 {[%emt 0:07:43]} Qxe5 {[%emt 0:01:31]} 16. Qxe5 {[%emt 0:01:49]} Nxe5 {[%emt 0:00:02]} 17. Nxc6 {[%emt 0:01:12]} Nxc6 {[%emt 0:00:11]} 18. Ne4 {[%emt 0:01:15]} Ne5 {[%emt 0:07:29]} 19. f6 {[%emt 0:02:34]} Bxf6 {[%emt 0:01:09]} 20. Nxf6+ {[%emt 0:01:54]} gxf6 {[%emt 0:00:02]} 21. Rxf6 {[%emt 0:00:52]} Rfe8 {[%emt 0:05:58]} 22. Bb2 {[%emt 0:06:19]} Nxd3 {[%emt 0:01:02]} 23. Bc3 {[%emt 0:00:02]} Rad8 {[%emt 0:01:09]} 24. Raf1 {[%emt 0:00:03]} Rd7 {[%emt 0:00:27]} 25. R6f5 {[%emt 0:00:35]} Re6 {[%emt 0:02:17]} 26. Bf6 {[%emt 0:00:13]} Kf8 {[%emt 0:05:26]} 27. h4 {[%emt 0:00:41]} b5 {[%emt 0:02:03]} 28. h5 {[%emt 0:01:07]} h6 {[%emt 0:03:51]} 29. Bc3 {[%emt 0:00:14]} b4 {[%emt 0:01:18]} 30. Bf6 {[%emt 0:00:12]} Re2 {[%emt 0:04:13]} 31. Ba1 {[%emt 0:02:31]} Ne1 {[%emt 0:04:34]} 32. R1f2 {[%emt 0:01:19]} Rxf2 {[%emt 0:03:40]} 33. Kxf2 {[%emt 0:00:04]} Nc2 {[%emt 0:00:31]} 34. Bf6 {[%emt 0:00:14]} Rd6 {[%emt 0:02:03]} 35. g4 {[%emt 0:00:43]} Nd4 {[%emt 0:00:58]} 36. Bxd4 {[%emt 0:00:21]} cxd4 {[%emt 0:00:10]} 37. Ke2 {[%emt 0:00:23]} d3+ {[%emt 0:00:50]} 38. Kd2 {[%emt 0:00:02]} Rd4 {[%emt 0:00:06]} 39. g5 {[%emt 0:00:54]} hxg5 {[%emt 0:01:21]} 40. Rxg5 {[%emt 0:00:02]} f6 {[%emt 0:00:33]} 41. Ra5 {[%emt 0:00:23]} Rd7 {[%emt 0:01:12]} 42. Rb5 {[%emt 0:01:08]} Kg7 {[%emt 0:00:31]} 43. Rxb4 {[%emt 0:00:20]} f5 {[%emt 0:00:24]} 44. Rh4 {[%emt 0:00:38]} Kh6 {[%emt 0:00:14]} 45. Rh3 {[%emt 0:00:05]} Rd4 {[%emt 0:00:39]} 46. a3 {[%emt 0:00:40]} a5 {[%emt 0:00:35]} 47. Rxd3 {[%emt 0:00:22]} Rxd3+ {[%emt 0:00:31]} 48. Kxd3 {[%emt 0:00:02]} Kxh5 {[%emt 0:00:00]} 49. b4 {[%emt 0:00:40]} axb4 {[%emt 0:00:28]} 50. axb4 {[%emt 0:00:03]} Kg4 {[%emt 0:00:01]} 51. b5 {[%emt 0:00:33]} f4 {[%emt 0:00:01]} 52. b6 {[%emt 0:00:14]} Kf3 {[%emt 0:01:45]} 53. b7 {[%emt 0:00:16]} Kg2 {[%emt 0:00:06]} 54. b8=Q {[%emt 0:00:20]} f3 {[%emt 0:00:06]} 55. Qb7 {[%emt 0:00:24]} Kf2 {[%emt 0:00:33]} 56. Qb2+ {[%emt 0:00:25]} 1-0

[Event "1st Sakatam Open 2024"]
[Site "Guwahati"]
[Date "2024.03.24"]
[Round "3.8"]
[White "Aaradhya Das"]
[Black "Arpan Das"]
[Result "0-1"]
[ECO "B23"]
[WhiteElo "1671"]
[BlackElo "2374"]
[Annotator "RC"]
[PlyCount "118"]
[EventDate "2024.03.24"]
[EventType "swiss"]
[EventCountry "IND"]
[SourceTitle "playchess.com"]
[Source "ChessBase"]
[SourceQuality "1"]
[TimeControl "5400+30"]

1. e4 {[%emt 0:00:03]} c5 {[%emt 0:12:31]} 2. Nc3 {[%emt 0:00:18]} Nc6 {[%emt 0:00:04]} 3. Bc4 {[%emt 0:00:08]} Nf6 {[%emt 0:00:11]} 4. a3 {[%emt 0:00:52]} e6 {[%emt 0:00:19]} 5. Ba2 {[%emt 0:00:15]} d5 {[%emt 0:00:06]} 6. exd5 {[%emt 0:00:12]} exd5 {[%emt 0:00:06]} 7. d3 {[%emt 0:04:00]} d4 {[%emt 0:11:54]} 8. Nce2 {[%emt 0:00:41]} Bd6 {[%emt 0:00:23]} 9. Nf3 {[%emt 0:01:22]} Bg4 {[%emt 0:00:15]} 10. Bg5 {[%emt 0:13:57]} h6 {[%emt 0:00:47]} 11. Bh4 {[%emt 0:03:34]} Qe7 {[%emt 0:00:08]} 12. Bxf6 {[%emt 0:06:01]} Qxf6 {[%emt 0:00:24]} 13. Bd5 {[%emt 0:00:33]} O-O {[%emt 0:01:12]} 14. O-O {[%emt 0:05:28]} Bc7 {[%emt 0:08:03]} 15. Ng3 {[%emt 0:05:57]} Rad8 {[%emt 0:00:04]} 16. Be4 {[%emt 0:02:58]} Qd6 {[%emt 0:00:43]} 17. h3 {[%emt 0:04:09]} Be6 {[%emt 0:00:05]} 18. Re1 {[%emt 0:01:41]} Ne7 {[%emt 0:03:44]} 19. Ne5 {[%emt 0:22:49]} Qxe5 {[%emt 0:00:17]} 20. Bh7+ {[%emt 0:00:15]} Kxh7 {[%emt 0:00:04]} 21. Rxe5 {[%emt 0:00:05]} Bxe5 {[%emt 0:00:04]} 22. Ne4 {[%emt 0:02:03]} b6 {[%emt 0:00:03]} 23. Qh5 {[%emt 0:01:00]} Rd5 {[%emt 0:00:06]} 24. Qe2 {[%emt 0:02:07]} Ng6 {[%emt 0:00:19]} 25. g3 {[%emt 0:02:26]} Bc7 {[%emt 0:00:57]} 26. f4 {[%emt 0:04:53]} Bxh3 {[%emt 0:01:49]} 27. Qf3 {[%emt 0:01:25]} Rfd8 {[%emt 0:00:46]} 28. Re1 {[%emt 0:02:00]} Be6 {[%emt 0:00:06]} 29. Kf2 {[%emt 0:01:13]} Kg8 {[%emt 0:00:06]} 30. Rh1 {[%emt 0:02:17]} Kf8 {[%emt 0:00:14]} 31. Re1 {[%emt 0:00:57]} Bc8 {[%emt 0:01:06]} 32. Rh1 {[%emt 0:01:20]} f6 {[%emt 0:01:48]} 33. Rh5 {[%emt 0:01:20]} f5 {[%emt 0:00:07]} 34. Nd2 {[%emt 0:01:01]} b5 {[%emt 0:00:06]} 35. Rh1 {[%emt 0:02:19]} Be6 {[%emt 0:00:10]} 36. Re1 {[%emt 0:00:23]} Bf7 {[%emt 0:00:06]} 37. Qg2 {[%emt 0:02:42]} h5 {[%emt 0:01:57]} 38. Nf3 {[%emt 0:00:54]} h4 {[%emt 0:00:05]} 39. Ng5 {[%emt 0:00:52]} hxg3+ {[%emt 0:00:06]} 40. Qxg3 {[%emt 0:00:02]} Bxf4 {[%emt 0:00:49]} 41. Ne6+ {[%emt 0:01:07]} Bxe6 {[%emt 0:00:04]} 42. Qxg6 {[%emt 0:00:08]} Be3+ {[%emt 0:00:03]} 43. Ke2 {[%emt 0:00:38]} Re5 {[%emt 0:00:16]} 44. Kd1 {[%emt 0:00:10]} Bd5 {[%emt 0:02:17]} 45. Qg3 {[%emt 0:00:50]} Rde8 {[%emt 0:00:14]} 46. Rf1 {[%emt 0:00:41]} Kf7 {[%emt 0:00:33]} 47. Qh3 {[%emt 0:00:27]} Kf6 {[%emt 0:00:04]} 48. Qh4+ {[%emt 0:01:14]} Bg5 {[%emt 0:00:08]} 49. Qg3 {[%emt 0:00:11]} Bf7 {[%emt 0:02:06]} 50. c4 {[%emt 0:01:25]} dxc3 {[%emt 0:00:07]} 51. Kc2 {[%emt 0:00:33]} Re2+ {[%emt 0:00:07]} 52. Kxc3 {[%emt 0:00:38]} Bd2+ {[%emt 0:00:15]} 53. Kc2 {[%emt 0:00:13]} Be1+ {[%emt 0:00:09]} 54. Kb1 {[%emt 0:00:11]} Bxg3 {[%emt 0:00:07]} 55. Rc1 {[%emt 0:00:27]} Bb3 {[%emt 0:00:08]} 56. Ka1 {[%emt 0:00:09]} Re1 {[%emt 0:00:05]} 57. Kb1 {[%emt 0:00:41]} Rxc1+ {[%emt 0:00:06]} 58. Kxc1 {[%emt 0:00:04]} Bf4+ {[%emt 0:00:03]} 59. Kb1 {[%emt 0:00:07]} Re1# {[%emt 0:00:04]} 0-1

[Event "1st Sakatam Open 2024"]
[Site "Guwahati"]
[Date "2024.03.24"]
[Round "4.1"]
[White "Kaustuv, Kundu"]
[Black "Aahil Patra"]
[Result "1-0"]
[ECO "D46"]
[WhiteElo "2388"]
[BlackElo "1758"]
[Annotator "RC"]
[PlyCount "95"]
[EventDate "2024.03.24"]
[EventType "swiss"]
[EventCountry "IND"]
[SourceTitle "playchess.com"]
[Source "ChessBase"]
[SourceQuality "1"]
[TimeControl "5400+30"]

1. Nf3 {[%emt 0:07:14]} d5 {[%emt 0:00:18]} 2. e3 {[%emt 0:00:40]} Nf6 {[%emt 0:00:56]} 3. c4 {[%emt 0:00:18]} e6 {[%emt 0:00:49]} 4. b3 {[%emt 0:00:23]} Nbd7 {[%emt 0:00:56]} 5. Bb2 {[%emt 0:00:13]} Be7 {[%emt 0:00:35]} 6. Nc3 {[%emt 0:02:10]} c6 {[%emt 0:00:29]} 7. d4 {[%emt 0:03:38]} O-O {[%emt 0:01:20]} 8. Bd3 {[%emt 0:00:05]} b6 {[%emt 0:00:10]} 9. O-O {[%emt 0:00:07]} Bb7 {[%emt 0:00:12]} 10. Qe2 {[%emt 0:07:43]} Re8 {[%emt 0:05:53]} 11. Rad1 {[%emt 0:00:47]} Bf8 {[%emt 0:02:01]} 12. Rfe1 {[%emt 0:05:57]} g6 {[%emt 0:01:39]} 13. Qc2 {[%emt 0:03:12]} Bg7 {[%emt 0:02:05]} 14. b4 {[%emt 0:05:17]} Qc7 {[%emt 0:11:50]} 15. Rc1 {[%emt 0:07:23]} Rac8 {[%emt 0:03:37]} 16. a4 {[%emt 0:06:36]} a5 {[%emt 0:07:43]} 17. bxa5 {[%emt 0:00:57]} bxa5 {[%emt 0:00:21]} 18. c5 {[%emt 0:00:45]} e5 {[%emt 0:05:42]} 19. Nxe5 {[%emt 0:02:19]} Nxe5 {[%emt 0:00:30]} 20. dxe5 {[%emt 0:00:06]} Rxe5 {[%emt 0:00:11]} 21. Ne2 {[%emt 0:00:27]} Re7 {[%emt 0:01:01]} 22. h3 {[%emt 0:02:34]} Rce8 {[%emt 0:02:23]} 23. Rb1 {[%emt 0:01:32]} Bc8 {[%emt 0:05:10]} 24. Bd4 {[%emt 0:00:44]} Nd7 {[%emt 0:01:45]} 25. Bxg7 {[%emt 0:02:11]} Kxg7 {[%emt 0:00:38]} 26. Nd4 {[%emt 0:00:15]} Re5 {[%emt 0:05:33]} 27. Bf1 {[%emt 0:04:13]} Kg8 {[%emt 0:06:09]} 28. Rec1 {[%emt 0:01:32]} Rf8 {[%emt 0:01:26]} 29. Qd2 {[%emt 0:07:37]} Re4 {[%emt 0:05:01]} 30. g3 {[%emt 0:01:19]} Re7 {[%emt 0:18:13]} 31. Bg2 {[%emt 0:04:54]} Ne5 {[%emt 0:00:47]} 32. Rc3 {[%emt 0:04:53]} Ba6 {[%emt 0:01:26]} 33. Qc2 {[%emt 0:02:11]} f5 {[%emt 0:03:27]} 34. Rb6 {[%emt 0:00:29]} Bb7 {[%emt 0:00:50]} 35. Rcb3 {[%emt 0:01:11]} Ba8 {[%emt 0:01:13]} 36. Rc3 {[%emt 0:05:27]} Nd7 {[%emt 0:01:18]} 37. Rb1 {[%emt 0:00:33]} Qa7 {[%emt 0:00:57]} 38. h4 {[%emt 0:00:58]} Ree8 {[%emt 0:00:57]} 39. h5 {[%emt 0:01:19]} Re7 {[%emt 0:00:48]} 40. Rc1 {[%emt 0:04:14]} Rb8 {[%emt 0:01:40]} 41. hxg6 {[%emt 0:00:20]} hxg6 {[%emt 0:00:23]} 42. g4 {[%emt 0:00:06]} Rf8 {[%emt 0:00:58]} 43. gxf5 {[%emt 0:00:19]} gxf5 {[%emt 0:00:38]} 44. Nxf5 {[%emt 0:00:06]} Rh7 {[%emt 0:00:10]} 45. e4 {[%emt 0:00:06]} Nf6 {[%emt 0:00:46]} 46. Rg3+ {[%emt 0:01:00]} Kh8 {[%emt 0:00:15]} 47. Qc3 {[%emt 0:00:21]} dxe4 {[%emt 0:00:52]} 48. Rd1 {[%emt 0:00:33]} 1-0

[Event "1st Sakatam Open 2024"]
[Site "Guwahati"]
[Date "2024.03.24"]
[Round "4.2"]
[White "Parambrata Sarkar"]
[Black "Arpan Das"]
[Result "0-1"]
[ECO "B15"]
[WhiteElo "1755"]
[BlackElo "2374"]
[Annotator "RC"]
[PlyCount "50"]
[EventDate "2024.03.24"]
[EventType "swiss"]
[EventCountry "IND"]
[SourceTitle "playchess.com"]
[Source "ChessBase"]
[SourceQuality "1"]
[TimeControl "5400+30"]

1. e4 {[%emt 0:00:19]} c6 {[%emt 0:01:17]} 2. d4 {[%emt 0:00:13]} d5 {[%emt 0:00:05]} 3. Nc3 {[%emt 0:00:04]} dxe4 {[%emt 0:00:02]} 4. Nxe4 {[%emt 0:00:13]} Nf6 {[%emt 0:00:03]} 5. Bd3 {[%emt 0:01:14]} Qxd4 {[%emt 0:00:43]} 6. Nf3 {[%emt 0:01:43]} Qd8 {[%emt 0:01:55]} 7. Qe2 {[%emt 0:00:43]} Nxe4 {[%emt 0:01:06]} 8. Bxe4 {[%emt 0:03:26]} g6 {[%emt 0:04:56]} 9. h4 {[%emt 0:05:59]} Bg4 {[%emt 0:02:50]} 10. Bd2 {[%emt 0:01:15]} Bg7 {[%emt 0:00:24]} 11. O-O-O {[%emt 0:00:22]} Nd7 {[%emt 0:07:51]} 12. c3 {[%emt 0:02:46]} Qc7 {[%emt 0:03:18]} 13. Bc2 {[%emt 0:02:03]} e6 {[%emt 0:01:04]} 14. Qe3 {[%emt 0:20:25]} Nb6 {[%emt 0:06:27]} 15. Bb3 {[%emt 0:18:05]} O-O-O {[%emt 0:05:30]} 16. Rhe1 {[%emt 0:04:13]} h5 {[%emt 0:02:00]} 17. Qc5 {[%emt 0:02:08]} Bf6 {[%emt 0:07:35]} 18. Qa5 {[%emt 0:04:05]} Kb8 {[%emt 0:03:46]} 19. Re4 {[%emt 0:00:21]} Nd5 {[%emt 0:05:07]} 20. Qa4 {[%emt 0:00:59]} e5 {[%emt 0:08:21]} 21. Rde1 {[%emt 0:03:30]} b5 {[%emt 0:06:39]} 22. Qa6 {[%emt 0:00:44]} Bc8 {[%emt 0:01:53]} 23. Qa3 {[%emt 0:00:29]} Be7 {[%emt 0:00:33]} 24. Rxe5 {[%emt 0:00:30]} Bxa3 {[%emt 0:00:22]} 25. bxa3 {[%emt 0:00:06]} f6 {[%emt 0:02:44]} 0-1

[Event "1st Sakatam Open 2024"]
[Site "Guwahati"]
[Date "2024.03.24"]
[Round "4.3"]
[White "Subhayan Kundu"]
[Black "Sagnik Halder"]
[Result "1-0"]
[ECO "C11"]
[WhiteElo "2353"]
[BlackElo "1750"]
[Annotator "RC"]
[PlyCount "111"]
[EventDate "2024.03.24"]
[EventType "swiss"]
[EventCountry "IND"]
[SourceTitle "playchess.com"]
[Source "ChessBase"]
[SourceQuality "1"]
[TimeControl "5400+30"]

1. e4 {[%emt 0:00:33]} e6 {[%emt 0:00:28]} 2. d4 {[%emt 0:00:13]} d5 {[%emt 0:00:08]} 3. Nc3 {[%emt 0:00:10]} Nf6 {[%emt 0:00:13]} 4. e5 {[%emt 0:00:21]} Nfd7 {[%emt 0:00:19]} 5. f4 {[%emt 0:00:10]} c5 {[%emt 0:00:07]} 6. Nf3 {[%emt 0:00:06]} Nc6 {[%emt 0:00:06]} 7. Be3 {[%emt 0:00:05]} Be7 {[%emt 0:00:06]} 8. Qd2 {[%emt 0:00:40]} O-O {[%emt 0:02:15]} 9. dxc5 {[%emt 0:00:30]} Qa5 {[%emt 0:00:19]} 10. a3 {[%emt 0:00:25]} a6 {[%emt 0:01:05]} 11. Be2 {[%emt 0:03:34]} Bxc5 {[%emt 0:01:27]} 12. Nd4 {[%emt 0:04:09]} Nxd4 {[%emt 0:01:44]} 13. Bxd4 {[%emt 0:00:01]} Bxd4 {[%emt 0:00:26]} 14. Qxd4 {[%emt 0:00:02]} Qb6 {[%emt 0:00:33]} 15. O-O-O {[%emt 0:00:21]} Qxd4 {[%emt 0:02:33]} 16. Rxd4 {[%emt 0:00:03]} b6 {[%emt 0:09:40]} 17. Re1 {[%emt 0:01:24]} Bb7 {[%emt 0:04:05]} 18. g3 {[%emt 0:08:41]} Rfc8 {[%emt 0:05:04]} 19. Ne4 {[%emt 0:03:41]} Nc5 {[%emt 0:07:34]} 20. Nd2 {[%emt 0:03:00]} Rc7 {[%emt 0:09:48]} 21. Kb1 {[%emt 0:00:31]} Rac8 {[%emt 0:06:38]} 22. a4 {[%emt 0:15:53]} Kf8 {[%emt 0:08:26]} 23. c3 {[%emt 0:07:54]} Ke7 {[%emt 0:01:28]} 24. Kc2 {[%emt 0:01:48]} Bc6 {[%emt 0:00:22]} 25. Ra1 {[%emt 0:00:15]} Bb7 {[%emt 0:08:01]} 26. Rb4 {[%emt 0:01:36]} Rc6 {[%emt 0:00:35]} 27. Rd4 {[%emt 0:01:57]} R6c7 {[%emt 0:02:47]} 28. h4 {[%emt 0:00:28]} f6 {[%emt 0:00:41]} 29. exf6+ {[%emt 0:01:10]} gxf6 {[%emt 0:00:08]} 30. Re1 {[%emt 0:03:12]} Bc6 {[%emt 0:28:24]} 31. b3 {[%emt 0:43:07]} Kf8 32. Kb2 {[%emt 0:00:00]} a5 {[%emt 0:00:00]} 33. Bf3 {[%emt 0:01:00]} Re7 {[%emt 0:01:30]} 34. Nf1 {[%emt 0:00:30]} e5 35. Rdd1 e4 {[%emt 0:01:00]} 36. Be2 Rce8 {[%emt 0:00:30]} 37. Rd4 Ne6 {[%emt 0:00:30]} 38. Rd2 Rg7 39. f5 {[%emt 0:02:30]} Nc5 {[%emt 0:01:00]} 40. g4 {[%emt 0:00:30]} h5 {[%emt 0:00:30]} 41. g5 {[%emt 0:00:30]} Re5 42. gxf6 Rg2 43. Ka3 e3 {[%emt 0:01:30]} 44. Rd4 {[%emt 0:01:30]} Rf2 45. Ng3 Rg2 46. Nxh5 Rxf5 47. Nf4 {[%emt 0:01:30]} Rf2 48. Ng6+ Kf7 49. Ne7 Rxf6 50. Nxc6 Rxc6 51. Rxd5 Ne4 52. Bc4 {[%emt 0:02:30]} Nxc3 53. Rd3+ {[%emt 0:00:30]} Kg7 54. Rxc3 Rd6 55. Rcxe3 Rdd2 56. R3e2 {[%emt 0:00:00]} 1-0